[Event "6th Cattolica Open 2019"]
[Site "Cattolica"]
[Date "2019.06.09"]
[Round "2.11"]
[White "Vignesh B"]
[Black "Arjun Kalyan"]
[Result "0-1"]
[ECO "B59"]
[WhiteElo "1846"]
[BlackElo "2484"]
[Annotator "ChessBase"]
[PlyCount "74"]
[EventDate "2019.06.08"]
[EventType "swiss"]
[EventCountry "ITA"]
[SourceTitle "playchess.com"]
[Source "ChessBase"]
[SourceQuality "1"]
[TimeControl "40/5400+30:900+30"]

1. e4 {[%emt 0:00:00]} c5 {[%emt 0:00:00]} 2. Nf3 {[%emt 0:00:00]} Nc6 {[%emt 0:00:00]} 3. d4 {[%emt 0:00:00]} cxd4 {[%emt 0:00:00]} 4. Nxd4 {[%emt 0:00:05]} Nf6 {[%emt 0:00:04]} 5. Nc3 {[%emt 0:00:10]} d6 {[%emt 0:00:07]} 6. Be2 {[%emt 0:01:06]} e5 {[%emt 0:00:37]} 7. Nb3 {[%emt 0:01:00]} Be7 {[%emt 0:00:28]} 8. O-O {[%emt 0:01:59]} O-O {[%emt 0:00:23]} 9. Be3 {[%emt 0:08:24]} Be6 {[%emt 0:00:17]} 10. f3 {[%emt 0:01:42]} a5 {[%emt 0:03:24]} 11. Nd2 {[%emt 0:08:25]} Nd4 {[%emt 0:22:49]} 12. Kh1 {[%emt 0:20:01]} Nxe2 {[%emt 0:11:06]} 13. Qxe2 {[%emt 0:00:22]} d5 {[%emt 0:01:39]} 14. exd5 {[%emt 0:02:04]} Nxd5 {[%emt 0:00:11]} 15. Nxd5 {[%emt 0:04:19]} Qxd5 {[%emt 0:00:15]} 16. c4 {[%emt 0:11:19]} Qc6 {[%emt 0:00:17]} 17. b3 {[%emt 0:04:24]} f5 {[%emt 0:13:34]} 18. Rad1 {[%emt 0:01:59]} a4 {[%emt 0:01:30]} 19. Nb1 {[%emt 0:01:54]} axb3 {[%emt 0:03:54]} 20. axb3 {[%emt 0:00:27]} Bf6 {[%emt 0:10:30]} 21. Nc3 {[%emt 0:02:15]} Rad8 {[%emt 0:00:35]} 22. Rxd8 {[%emt 0:01:48]} Rxd8 {[%emt 0:00:10]} 23. Rd1 {[%emt 0:00:35]} Rd7 {[%emt 0:02:40]} 24. Nb5 {[%emt 0:06:41]} g5 {[%emt 0:04:50]} 25. Bf2 {[%emt 0:04:51]} h5 {[%emt 0:01:28]} 26. Nc3 {[%emt 0:13:11]} g4 {[%emt 0:02:50]} 27. Rxd7 {[%emt 0:01:24]} Qxd7 {[%emt 0:00:03]} 28. Qd1 {[%emt 0:00:49]} Qxd1+ {[%emt 0:01:26]} 29. Nxd1 {[%emt 0:00:02]} Kf7 {[%emt 0:01:04]} 30. Kg1 {[%emt 0:01:21]} Be7 {[%emt 0:02:42]} 31. Nb2 {[%emt 0:00:51]} Bd7 {[%emt 0:04:13]} 32. Nd3 {[%emt 0:00:36]} Bd6 {[%emt 0:00:16]} 33. b4 {[%emt 0:01:09]} gxf3 {[%emt 0:01:17]} 34. gxf3 {[%emt 0:00:05]} Bc6 {[%emt 0:00:16]} 35. Bc5 {[%emt 0:01:30]} Bxc5+ {[%emt 0:00:40]} 36. bxc5 {[%emt 0:00:01]} Kf6 {[%emt 0:01:52]} 37. Kf2 {[%emt 0:00:37]} Bxf3 {[%emt 0:01:03]} 0-1

[Event "6th Cattolica Open 2019"]
[Site "Cattolica"]
[Date "2019.06.10"]
[Round "3.9"]
[White "Anand Nadar"]
[Black "Yankelevich, Lev"]
[Result "1/2-1/2"]
[ECO "C95"]
[WhiteElo "2366"]
[BlackElo "2484"]
[Annotator "ChessBase"]
[PlyCount "72"]
[EventDate "2019.06.08"]
[EventType "swiss"]
[EventCountry "ITA"]
[SourceTitle "playchess.com"]
[Source "ChessBase"]
[SourceQuality "1"]
[TimeControl "40/5400+30:900+30"]

1. e4 {[%emt 0:00:00]} e5 {[%emt 0:00:13]} 2. Nf3 {[%emt 0:00:00]} Nc6 {[%emt 0:00:04]} 3. Bb5 {[%emt 0:00:00]} a6 {[%emt 0:00:05]} 4. Ba4 {[%emt 0:00:00]} Nf6 {[%emt 0:00:13]} 5. O-O {[%emt 0:00:02]} Be7 {[%emt 0:00:06]} 6. Re1 {[%emt 0:00:07]} b5 {[%emt 0:00:03]} 7. Bb3 {[%emt 0:00:05]} d6 {[%emt 0:00:03]} 8. c3 {[%emt 0:00:07]} O-O {[%emt 0:00:06]} 9. h3 {[%emt 0:00:03]} Nb8 {[%emt 0:00:03]} 10. d4 {[%emt 0:01:08]} Nbd7 {[%emt 0:00:05]} 11. c4 {[%emt 0:02:47]} c6 {[%emt 0:00:45]} 12. a3 {[%emt 0:00:04]} Qc7 {[%emt 0:10:52]} 13. Nc3 {[%emt 0:03:14]} Bb7 {[%emt 0:11:18]} 14. Qc2 {[%emt 0:07:05]} Rac8 {[%emt 0:02:53]} 15. Ba2 {[%emt 0:19:35]} h6 {[%emt 0:11:53]} 16. Be3 {[%emt 0:05:25]} Rfe8 {[%emt 0:01:08]} 17. Qb3 {[%emt 0:08:05]} exd4 {[%emt 0:08:41]} 18. Bxd4 {[%emt 0:03:26]} c5 {[%emt 0:11:26]} 19. Bxf6 {[%emt 0:14:59]} Bxf6 {[%emt 0:00:55]} 20. cxb5 {[%emt 0:13:28]} c4 {[%emt 0:00:08]} 21. Qc2 {[%emt 0:00:04]} Bxc3 {[%emt 0:00:28]} 22. b6 {[%emt 0:00:35]} Qxb6 {[%emt 0:08:39]} 23. bxc3 {[%emt 0:00:05]} Nc5 {[%emt 0:06:08]} 24. Bxc4 {[%emt 0:06:28]} Bxe4 {[%emt 0:01:00]} 25. Qa2 {[%emt 0:00:23]} Qb7 {[%emt 0:00:57]} 26. Re3 {[%emt 0:01:24]} d5 {[%emt 0:00:42]} 27. Bf1 {[%emt 0:00:40]} Re6 {[%emt 0:02:26]} 28. c4 {[%emt 0:03:44]} Rb6 {[%emt 0:08:47]} 29. cxd5 {[%emt 0:01:08]} Rb2 {[%emt 0:01:26]} 30. Qc4 {[%emt 0:00:01]} Bxd5 {[%emt 0:00:05]} 31. Qh4 {[%emt 0:02:41]} Ne6 {[%emt 0:04:10]} 32. Rae1 {[%emt 0:01:58]} Bxf3 {[%emt 0:01:40]} 33. Rxf3 {[%emt 0:00:12]} Rb1 {[%emt 0:00:01]} 34. Rxb1 {[%emt 0:02:55]} Qxb1 {[%emt 0:00:06]} 35. Qe7 {[%emt 0:00:01]} Ng5 {[%emt 0:00:45]} 36. Re3 {[%emt 0:00:40]} Rc1 {[%emt 0:06:10]} 1/2-1/2

[Event "6th Cattolica Open 2019"]
[Site "Cattolica"]
[Date "2019.06.10"]
[Round "3.10"]
[White "Repka, Christopher"]
[Black "Souhardo Basak"]
[Result "1-0"]
[ECO "D00"]
[WhiteElo "2482"]
[BlackElo "2104"]
[Annotator "ChessBase"]
[PlyCount "91"]
[EventDate "2019.06.08"]
[EventType "swiss"]
[EventCountry "ITA"]
[SourceTitle "playchess.com"]
[Source "ChessBase"]
[SourceQuality "1"]
[TimeControl "40/5400+30:900+30"]

1. d4 {[%emt 0:06:28]} Nf6 {[%emt 0:00:00]} 2. Bf4 {[%emt 0:00:12]} d5 {[%emt 0:00:22]} 3. e3 {[%emt 0:00:07]} c5 {[%emt 0:00:30]} 4. c3 {[%emt 0:00:04]} Nc6 {[%emt 0:00:05]} 5. Nd2 {[%emt 0:00:04]} e6 {[%emt 0:01:26]} 6. Nh3 {[%emt 0:00:06]} Bd6 {[%emt 0:00:21]} 7. Bxd6 {[%emt 0:00:04]} Qxd6 {[%emt 0:00:06]} 8. f4 {[%emt 0:00:03]} O-O {[%emt 0:04:02]} 9. Bd3 {[%emt 0:02:53]} Nd7 {[%emt 0:06:55]} 10. O-O {[%emt 0:26:22]} g6 {[%emt 0:04:51]} 11. Nf3 {[%emt 0:07:54]} c4 {[%emt 0:03:26]} 12. Be2 {[%emt 0:01:52]} f5 {[%emt 0:00:40]} 13. b3 {[%emt 0:00:13]} b5 {[%emt 0:01:41]} 14. a4 {[%emt 0:00:04]} Na5 {[%emt 0:02:03]} 15. Nd2 {[%emt 0:00:07]} bxa4 {[%emt 0:04:26]} 16. bxc4 {[%emt 0:04:23]} Nxc4 {[%emt 0:00:07]} 17. Nxc4 {[%emt 0:05:34]} dxc4 {[%emt 0:00:02]} 18. Bxc4 {[%emt 0:00:26]} Nb6 {[%emt 0:00:16]} 19. Be2 {[%emt 0:00:46]} Qc7 {[%emt 0:12:32]} 20. c4 {[%emt 0:02:15]} Bb7 {[%emt 0:02:06]} 21. Ng5 {[%emt 0:00:03]} Rfe8 {[%emt 0:02:45]} 22. Qe1 {[%emt 0:05:40]} a5 {[%emt 0:08:20]} 23. Qh4 {[%emt 0:00:39]} Re7 {[%emt 0:01:06]} 24. Rfb1 {[%emt 0:01:39]} Ba6 {[%emt 0:03:23]} 25. Nf3 {[%emt 0:00:40]} Ree8 {[%emt 0:03:46]} 26. Ne5 {[%emt 0:00:16]} Nd7 {[%emt 0:00:23]} 27. Rxa4 {[%emt 0:01:54]} Nxe5 {[%emt 0:00:32]} 28. fxe5 {[%emt 0:00:03]} Reb8 {[%emt 0:00:25]} 29. Rba1 {[%emt 0:02:22]} Bc8 {[%emt 0:00:33]} 30. Bf3 {[%emt 0:00:42]} Ra7 {[%emt 0:00:42]} 31. c5 {[%emt 0:03:38]} Bd7 {[%emt 0:00:53]} 32. c6 {[%emt 0:00:09]} Be8 {[%emt 0:07:44]} 33. Qf6 {[%emt 0:00:04]} Bf7 {[%emt 0:00:05]} 34. d5 {[%emt 0:01:44]} exd5 {[%emt 0:01:01]} 35. e6 {[%emt 0:00:04]} Be8 {[%emt 0:00:15]} 36. Bxd5 {[%emt 0:00:10]} h5 {[%emt 0:01:26]} 37. Rc1 {[%emt 0:07:32]} Qg7 {[%emt 0:01:39]} 38. e7+ {[%emt 0:07:35]} Kh7 {[%emt 0:00:06]} 39. c7 {[%emt 0:06:56]} Rc8 {[%emt 0:00:24]} 40. Qf8 {[%emt 0:00:00]} Qh8 {[%emt 0:00:00]} 41. Qxh8+ {[%emt 0:02:54]} Kxh8 {[%emt 0:10:50]} 42. Rac4 {[%emt 0:00:06]} Bd7 {[%emt 0:00:22]} 43. Bf7 {[%emt 0:00:05]} Kg7 {[%emt 0:00:05]} 44. e8=B {[%emt 0:00:06]} Bxe8 {[%emt 0:00:36]} 45. Bxe8 {[%emt 0:00:04]} Rxe8 {[%emt 0:00:13]} 46. c8=Q {[%emt 0:00:46]} 1-0

[Event "6th Cattolica Open 2019"]
[Site "Cattolica"]
[Date "2019.06.10"]
[Round "3.11"]
[White "Mezentsev, Ivan"]
[Black "Kjartansson, Gudmundur"]
[Result "1-0"]
[ECO "A11"]
[WhiteElo "2281"]
[BlackElo "2459"]
[Annotator "ChessBase"]
[PlyCount "141"]
[EventDate "2019.06.08"]
[EventType "swiss"]
[EventCountry "ITA"]
[SourceTitle "playchess.com"]
[Source "ChessBase"]
[SourceQuality "1"]
[TimeControl "40/5400+30:900+30"]

1. Nf3 {[%emt 0:00:00]} d5 {[%emt 0:00:24]} 2. e3 {[%emt 0:00:45]} Nf6 {[%emt 0:00:52]} 3. c4 {[%emt 0:00:26]} c6 {[%emt 0:03:02]} 4. Nc3 {[%emt 0:01:57]} e6 {[%emt 0:00:15]} 5. b3 {[%emt 0:12:55]} Bd6 {[%emt 0:00:15]} 6. Bb2 {[%emt 0:00:20]} e5 {[%emt 0:02:31]} 7. cxd5 {[%emt 0:01:11]} cxd5 {[%emt 0:00:08]} 8. Nb5 {[%emt 0:00:38]} Nc6 {[%emt 0:00:44]} 9. Nxd6+ {[%emt 0:00:35]} Qxd6 {[%emt 0:00:05]} 10. Bb5 {[%emt 0:00:53]} e4 {[%emt 0:04:41]} 11. Ne5 {[%emt 0:05:03]} O-O {[%emt 0:02:27]} 12. Nxc6 {[%emt 0:03:16]} bxc6 {[%emt 0:00:09]} 13. Be2 {[%emt 0:00:02]} Bf5 {[%emt 0:24:47]} 14. O-O {[%emt 0:00:23]} a5 {[%emt 0:00:45]} 15. d3 {[%emt 0:03:55]} exd3 {[%emt 0:03:41]} 16. Bxd3 {[%emt 0:04:58]} Ng4 {[%emt 0:01:12]} 17. g3 {[%emt 0:00:15]} Qh6 {[%emt 0:00:42]} 18. h4 {[%emt 0:00:19]} Nxe3 {[%emt 0:00:15]} 19. Bc1 {[%emt 0:02:01]} Nxd1 {[%emt 0:01:49]} 20. Bxh6 {[%emt 0:00:03]} Bxd3 {[%emt 0:00:24]} 21. Rfxd1 {[%emt 0:00:09]} Be2 {[%emt 0:16:34]} 22. Rd2 {[%emt 0:01:52]} Bf3 {[%emt 0:01:16]} 23. Be3 {[%emt 0:00:17]} Rfe8 {[%emt 0:03:03]} 24. Rc1 {[%emt 0:00:20]} h5 {[%emt 0:02:16]} 25. Rd4 {[%emt 0:01:14]} Ra6 {[%emt 0:02:11]} 26. Kf1 {[%emt 0:05:00]} a4 {[%emt 0:02:01]} 27. b4 {[%emt 0:02:30]} Re6 {[%emt 0:03:18]} 28. a3 {[%emt 0:01:04]} f6 {[%emt 0:02:47]} 29. Ke1 {[%emt 0:05:15]} Kf7 {[%emt 0:03:06]} 30. Kd2 {[%emt 0:00:04]} Re8 {[%emt 0:03:25]} 31. Rc5 {[%emt 0:04:26]} Ke6 {[%emt 0:02:51]} 32. Kc3 {[%emt 0:00:32]} Kd7 {[%emt 0:00:37]} 33. Kd2 {[%emt 0:07:08]} Ke6 {[%emt 0:02:03]} 34. Rc3 {[%emt 0:00:48]} Be4 {[%emt 0:01:09]} 35. Rc5 {[%emt 0:00:15]} Rb8 {[%emt 0:00:48]} 36. Kc3 {[%emt 0:01:39]} Bg2 {[%emt 0:01:53]} 37. Rd1 {[%emt 0:00:21]} Kf5 {[%emt 0:02:27]} 38. Kd4 {[%emt 0:02:17]} g5 {[%emt 0:02:08]} 39. Rdc1 {[%emt 0:00:27]} gxh4 {[%emt 0:00:09]} 40. gxh4 {[%emt 0:00:00]} Re8 {[%emt 0:00:00]} 41. Kd3 {[%emt 0:05:50]} Kg4 {[%emt 0:07:17]} 42. Rg1 {[%emt 0:00:45]} Kh3 {[%emt 0:00:55]} 43. Bd4 {[%emt 0:04:32]} Rg8 {[%emt 0:06:07]} 44. Kd2 {[%emt 0:04:42]} Rg6 {[%emt 0:04:01]} 45. Rc3+ {[%emt 0:01:32]} Kh2 {[%emt 0:01:15]} 46. Rgc1 {[%emt 0:01:28]} c5 {[%emt 0:01:28]} 47. Bxc5 {[%emt 0:02:48]} Rg4 {[%emt 0:01:46]} 48. b5 {[%emt 0:03:05]} Re6 {[%emt 0:00:04]} 49. Ba7 {[%emt 0:01:03]} Be4 {[%emt 0:01:35]} 50. Re3 {[%emt 0:09:14]} d4 {[%emt 0:01:08]} 51. Bxd4 {[%emt 0:00:41]} Rd6 {[%emt 0:00:02]} 52. Kc3 {[%emt 0:01:37]} Bc6 {[%emt 0:01:07]} 53. Rd1 {[%emt 0:05:16]} Bxb5 {[%emt 0:00:01]} 54. Be5+ {[%emt 0:00:11]} fxe5 {[%emt 0:00:01]} 55. Rxd6 {[%emt 0:00:06]} Rc4+ {[%emt 0:01:26]} 56. Kd2 {[%emt 0:00:29]} Rxh4 {[%emt 0:00:33]} 57. Rxe5 {[%emt 0:00:15]} Bc4 {[%emt 0:00:19]} 58. Rh6 {[%emt 0:00:44]} Kg2 {[%emt 0:00:06]} 59. Rhxh5 {[%emt 0:00:42]} Rxh5 {[%emt 0:00:17]} 60. Rxh5 {[%emt 0:00:06]} Kxf2 {[%emt 0:00:08]} 61. Rf5+ {[%emt 0:00:12]} Kg3 {[%emt 0:01:11]} 62. Kc3 {[%emt 0:00:06]} Bb3 {[%emt 0:00:26]} 63. Kb4 {[%emt 0:00:04]} Bd1 {[%emt 0:01:34]} 64. Ra5 {[%emt 0:01:35]} Kf4 {[%emt 0:00:06]} 65. Rxa4 {[%emt 0:00:08]} Ke5 {[%emt 0:00:43]} 66. Ra8 {[%emt 0:00:21]} Bf3 {[%emt 0:00:25]} 67. Rd8 {[%emt 0:00:06]} Ke6 {[%emt 0:00:09]} 68. a4 {[%emt 0:00:13]} Ke7 {[%emt 0:00:03]} 69. Rd3 {[%emt 0:00:06]} Bg2 {[%emt 0:00:13]} 70. Kc5 {[%emt 0:00:09]} Bf1 {[%emt 0:00:21]} 71. Rd1 {[%emt 0:00:05]} 1-0

[Event "6th Cattolica Open 2019"]
[Site "Cattolica"]
[Date "2019.06.10"]
[Round "4.1"]
[White "Basso, Pier Luigi"]
[Black "Barseghyan, Harutyun"]
[Result "1/2-1/2"]
[ECO "D20"]
[WhiteElo "2539"]
[BlackElo "2495"]
[Annotator "ChessBase"]
[PlyCount "99"]
[EventDate "2019.06.08"]
[EventType "swiss"]
[EventCountry "ITA"]
[SourceTitle "playchess.com"]
[Source "ChessBase"]
[SourceQuality "1"]
[TimeControl "40/5400+30:900+30"]

1. d4 {[%emt 0:08:10]} d5 {[%emt 0:00:00]} 2. c4 {[%emt 0:00:27]} dxc4 {[%emt 0:00:00]} 3. e4 {[%emt 0:00:07]} b5 {[%emt 0:00:00]} 4. a4 {[%emt 0:00:59]} c6 {[%emt 0:00:00]} 5. Nc3 {[%emt 0:05:46]} a6 {[%emt 0:00:00]} 6. axb5 {[%emt 0:01:36]} cxb5 {[%emt 0:00:00]} 7. Nxb5 {[%emt 0:00:05]} axb5 {[%emt 0:00:00]} 8. Rxa8 {[%emt 0:00:05]} Bb7 {[%emt 0:00:00]} 9. Ra2 {[%emt 0:03:49]} e6 {[%emt 0:00:07]} 10. f3 {[%emt 0:01:46]} f5 {[%emt 0:00:08]} 11. g3 {[%emt 0:11:01]} Nc6 {[%emt 0:02:54]} 12. Bg2 {[%emt 0:14:58]} Nxd4 {[%emt 0:17:33]} 13. Ne2 {[%emt 0:08:12]} Bc5 {[%emt 0:02:30]} 14. Nxd4 {[%emt 0:02:51]} Bxd4 {[%emt 0:00:07]} 15. Qe2 {[%emt 0:04:08]} Qb6 {[%emt 0:08:07]} 16. exf5 {[%emt 0:01:58]} e5 {[%emt 0:00:02]} 17. f4 {[%emt 0:05:08]} Nf6 {[%emt 0:05:06]} 18. fxe5 {[%emt 0:05:21]} Nd7 {[%emt 0:04:31]} 19. Qh5+ {[%emt 0:05:46]} Kf8 {[%emt 0:01:10]} 20. e6 {[%emt 0:01:07]} Ne5 {[%emt 0:00:00]} 21. Bg5 {[%emt 0:03:24]} Bc5 {[%emt 0:02:05]} 22. Bxb7 {[%emt 0:04:44]} Bb4+ {[%emt 0:00:51]} 23. Ke2 {[%emt 0:03:37]} Qxb7 {[%emt 0:00:03]} 24. e7+ {[%emt 0:00:05]} Bxe7 {[%emt 0:00:05]} 25. Bxe7+ {[%emt 0:00:04]} Kxe7 {[%emt 0:00:09]} 26. Rd1 {[%emt 0:01:55]} Qg2+ {[%emt 0:01:57]} 27. Ke3 {[%emt 0:01:00]} Re8 {[%emt 0:01:41]} 28. f6+ {[%emt 0:00:55]} gxf6 {[%emt 0:01:12]} 29. Ra7+ {[%emt 0:00:42]} Nd7 {[%emt 0:00:05]} 30. Rdxd7+ {[%emt 0:03:27]} Kf8+ {[%emt 0:00:01]} 31. Qxe8+ {[%emt 0:00:07]} Kxe8 {[%emt 0:00:03]} 32. Rxh7 {[%emt 0:01:36]} Qg1+ {[%emt 0:00:01]} 33. Ke2 {[%emt 0:00:14]} Qg2+ {[%emt 0:00:03]} 34. Ke3 {[%emt 0:00:03]} Qg1+ {[%emt 0:00:03]} 35. Kf3 {[%emt 0:01:00]} Qd1+ {[%emt 0:03:53]} 36. Kg2 {[%emt 0:00:41]} Qe2+ {[%emt 0:00:03]} 37. Kh3 {[%emt 0:00:45]} Qe6+ {[%emt 0:00:02]} 38. Kh4 {[%emt 0:00:27]} Qe4+ {[%emt 0:00:06]} 39. Kh3 {[%emt 0:00:24]} Qe6+ {[%emt 0:00:02]} 40. Kh4 {[%emt 0:00:00]} Qe4+ {[%emt 0:00:00]} 41. g4 {[%emt 0:02:41]} Qe1+ {[%emt 0:00:40]} 42. Kh3 {[%emt 0:00:18]} Qe3+ {[%emt 0:00:17]} 43. Kg2 {[%emt 0:00:05]} Qe2+ {[%emt 0:00:09]} 44. Kg3 {[%emt 0:00:06]} Qe3+ {[%emt 0:00:02]} 45. Kg2 {[%emt 0:00:41]} Qe2+ {[%emt 0:00:03]} 46. Kg3 {[%emt 0:00:04]} Qe3+ {[%emt 0:00:08]} 47. Kg2 {[%emt 0:00:03]} Qe2+ {[%emt 0:00:07]} 48. Kg3 {[%emt 0:00:05]} Qe3+ {[%emt 0:00:04]} 49. Kg2 {[%emt 0:00:06]} Qe2+ {[%emt 0:00:13]} 50. Kg3 {[%emt 0:00:04]} 1/2-1/2

[Event "6th Cattolica Open 2019"]
[Site "Cattolica"]
[Date "2019.06.10"]
[Round "4.4"]
[White "Ankit, R. Rajpara"]
[Black "Martinez Alcantara, Jose Eduardo"]
[Result "1/2-1/2"]
[ECO "E11"]
[WhiteElo "2447"]
[BlackElo "2583"]
[Annotator "ChessBase"]
[PlyCount "41"]
[EventDate "2019.06.08"]
[EventType "swiss"]
[EventCountry "ITA"]
[SourceTitle "playchess.com"]
[Source "ChessBase"]
[SourceQuality "1"]
[TimeControl "40/5400+30:900+30"]

1. d4 {[%emt 0:00:40]} Nf6 {[%emt 0:00:00]} 2. c4 {[%emt 0:00:09]} e6 {[%emt 0:00:00]} 3. g3 {[%emt 0:00:07]} d5 {[%emt 0:04:58]} 4. Nf3 {[%emt 0:00:20]} Bb4+ {[%emt 0:00:02]} 5. Bd2 {[%emt 0:00:13]} Be7 {[%emt 0:00:01]} 6. Bg2 {[%emt 0:00:18]} O-O {[%emt 0:00:07]} 7. O-O {[%emt 0:00:44]} Nbd7 {[%emt 0:00:05]} 8. Qc2 {[%emt 0:01:01]} a5 {[%emt 0:02:21]} 9. b3 {[%emt 0:02:20]} c6 {[%emt 0:01:08]} 10. Rd1 {[%emt 0:10:03]} b6 {[%emt 0:06:29]} 11. Bc3 {[%emt 0:02:04]} Ba6 {[%emt 0:02:53]} 12. Nbd2 {[%emt 0:01:02]} h6 {[%emt 0:06:49]} 13. e4 {[%emt 0:11:52]} Qb8 {[%emt 0:08:03]} 14. Ne5 {[%emt 0:06:10]} Bb7 {[%emt 0:03:06]} 15. Re1 {[%emt 0:13:19]} Qc7 {[%emt 0:09:23]} 16. Rac1 {[%emt 0:05:25]} Rac8 {[%emt 0:01:11]} 17. Bb2 {[%emt 0:04:08]} Qd8 {[%emt 0:04:25]} 18. a3 {[%emt 0:05:37]} Nxe5 {[%emt 0:05:47]} 19. dxe5 {[%emt 0:00:15]} Ne8 {[%emt 0:00:08]} 20. exd5 {[%emt 0:10:50]} cxd5 {[%emt 0:00:02]} 21. Qd3 {[%emt 0:01:03]} 1/2-1/2

[Event "6th Cattolica Open 2019"]
[Site "Cattolica"]
[Date "2019.06.10"]
[Round "4.6"]
[White "Sonis, Francesco"]
[Black "Mezentsev, Ivan"]
[Result "1-0"]
[ECO "D31"]
[WhiteElo "2494"]
[BlackElo "2281"]
[Annotator "ChessBase"]
[PlyCount "105"]
[EventDate "2019.06.08"]
[EventType "swiss"]
[EventCountry "ITA"]
[SourceTitle "playchess.com"]
[Source "ChessBase"]
[SourceQuality "1"]
[TimeControl "40/5400+30:900+30"]

1. d4 {[%emt 0:00:00]} d5 {[%emt 0:00:00]} 2. c4 {[%emt 0:00:00]} e6 {[%emt 0:00:31]} 3. Nc3 {[%emt 0:00:00]} a6 {[%emt 0:00:32]} 4. cxd5 {[%emt 0:00:00]} exd5 {[%emt 0:00:06]} 5. Bf4 {[%emt 0:00:01]} Nf6 {[%emt 0:00:27]} 6. e3 {[%emt 0:00:03]} Bd6 {[%emt 0:00:26]} 7. Bxd6 {[%emt 0:00:05]} Qxd6 {[%emt 0:00:04]} 8. Bd3 {[%emt 0:00:05]} O-O {[%emt 0:00:28]} 9. h3 {[%emt 0:00:02]} Re8 {[%emt 0:01:51]} 10. Nf3 {[%emt 0:00:05]} Nbd7 {[%emt 0:03:43]} 11. O-O {[%emt 0:00:45]} b6 {[%emt 0:00:38]} 12. Qb3 {[%emt 0:00:07]} Bb7 {[%emt 0:00:24]} 13. Rfd1 {[%emt 0:00:18]} Re7 {[%emt 0:02:51]} 14. a4 {[%emt 0:03:18]} Ne4 {[%emt 0:06:27]} 15. a5 {[%emt 0:05:25]} b5 {[%emt 0:01:15]} 16. Na2 {[%emt 0:10:26]} c5 {[%emt 0:05:34]} 17. dxc5 {[%emt 0:03:08]} Ndxc5 {[%emt 0:00:15]} 18. Qb4 {[%emt 0:01:47]} Rc8 {[%emt 0:18:37]} 19. Bxe4 {[%emt 0:07:00]} Rxe4 {[%emt 0:00:19]} 20. Nd4 {[%emt 0:00:05]} Ree8 {[%emt 0:01:33]} 21. Rac1 {[%emt 0:03:55]} Ne4 {[%emt 0:00:44]} 22. Qxd6 {[%emt 0:00:21]} Nxd6 {[%emt 0:00:05]} 23. Nb4 {[%emt 0:00:59]} Kf8 {[%emt 0:07:44]} 24. b3 {[%emt 0:02:06]} Ne4 {[%emt 0:01:21]} 25. f3 {[%emt 0:01:43]} Nf6 {[%emt 0:00:24]} 26. Kf2 {[%emt 0:00:12]} h5 {[%emt 0:01:32]} 27. Nd3 {[%emt 0:04:25]} Rxc1 {[%emt 0:04:11]} 28. Rxc1 {[%emt 0:00:03]} Rc8 {[%emt 0:00:16]} 29. Nc5 {[%emt 0:00:08]} Ne8 {[%emt 0:03:05]} 30. Ne2 {[%emt 0:05:25]} Nd6 {[%emt 0:00:44]} 31. Nxb7 {[%emt 0:00:39]} Rxc1 {[%emt 0:00:07]} 32. Nxd6 {[%emt 0:00:02]} Ra1 {[%emt 0:00:28]} 33. Nb7 {[%emt 0:01:05]} Ra2 {[%emt 0:02:06]} 34. Kf1 {[%emt 0:00:43]} Ra1+ {[%emt 0:00:10]} 35. Kf2 {[%emt 0:00:02]} Ra2 {[%emt 0:00:05]} 36. Ke1 {[%emt 0:00:33]} Ke7 {[%emt 0:00:13]} 37. g3 {[%emt 0:01:54]} Kd7 {[%emt 0:00:17]} 38. Nc5+ {[%emt 0:00:17]} Kc8 {[%emt 0:05:05]} 39. b4 {[%emt 0:01:14]} g5 {[%emt 0:00:12]} 40. Nxa6 {[%emt 0:00:00]} Ra1+ {[%emt 0:00:00]} 41. Kf2 {[%emt 0:02:04]} Rb1 {[%emt 0:00:10]} 42. Nc3 {[%emt 0:04:00]} Rb2+ {[%emt 0:00:18]} 43. Ke1 {[%emt 0:00:48]} Kb7 {[%emt 0:00:07]} 44. Nc5+ {[%emt 0:00:07]} Kc6 {[%emt 0:00:08]} 45. Nd3 {[%emt 0:00:05]} Rh2 {[%emt 0:00:08]} 46. Ne2 {[%emt 0:01:12]} Rxh3 {[%emt 0:00:22]} 47. Nf2 {[%emt 0:00:17]} Rh2 {[%emt 0:00:09]} 48. Kf1 {[%emt 0:00:12]} h4 {[%emt 0:00:13]} 49. g4 {[%emt 0:00:04]} h3 {[%emt 0:00:08]} 50. Ng1 {[%emt 0:00:05]} Rg2 {[%emt 0:00:25]} 51. Ngxh3 {[%emt 0:00:03]} Rg3 {[%emt 0:00:06]} 52. Nxg5 {[%emt 0:00:02]} f6 {[%emt 0:00:06]} 53. Nh1 {[%emt 0:00:03]} 1-0

[Event "6th Cattolica Open 2019"]
[Site "Cattolica"]
[Date "2019.06.10"]
[Round "4.9"]
[White "Epishin, Vladimir"]
[Black "Vignesh B"]
[Result "1/2-1/2"]
[ECO "C00"]
[WhiteElo "2564"]
[BlackElo "2283"]
[Annotator "ChessBase"]
[PlyCount "61"]
[EventDate "2019.06.08"]
[EventType "swiss"]
[EventCountry "ITA"]
[SourceTitle "playchess.com"]
[Source "ChessBase"]
[SourceQuality "1"]
[TimeControl "40/5400+30:900+30"]

1. Nc3 {[%emt 0:00:00]} e6 {[%emt 0:02:00]} 2. e4 {[%emt 0:01:31]} d5 {[%emt 0:00:09]} 3. Qe2 {[%emt 0:01:38]} Nf6 {[%emt 0:01:31]} 4. Nf3 {[%emt 0:03:04]} Be7 {[%emt 0:01:49]} 5. g3 {[%emt 0:01:14]} O-O {[%emt 0:02:06]} 6. Bg2 {[%emt 0:00:03]} b6 {[%emt 0:07:41]} 7. O-O {[%emt 0:03:07]} Bb7 {[%emt 0:00:35]} 8. Ne5 {[%emt 0:03:51]} dxe4 {[%emt 0:17:37]} 9. Nxe4 {[%emt 0:03:50]} Nxe4 {[%emt 0:00:07]} 10. Bxe4 {[%emt 0:00:03]} Bxe4 {[%emt 0:00:09]} 11. Qxe4 {[%emt 0:00:09]} Qd5 {[%emt 0:00:08]} 12. Re1 {[%emt 0:00:08]} Qxe4 {[%emt 0:01:18]} 13. Rxe4 {[%emt 0:00:03]} Bf6 {[%emt 0:00:19]} 14. Ng4 {[%emt 0:01:03]} Nd7 {[%emt 0:01:32]} 15. Nxf6+ {[%emt 0:01:59]} Nxf6 {[%emt 0:00:05]} 16. Rc4 {[%emt 0:00:38]} c5 {[%emt 0:01:16]} 17. d3 {[%emt 0:00:12]} Nd5 {[%emt 0:00:41]} 18. Bd2 {[%emt 0:00:56]} Rfc8 {[%emt 0:01:49]} 19. a4 {[%emt 0:00:30]} Rab8 {[%emt 0:01:45]} 20. c3 {[%emt 0:01:46]} Rd8 {[%emt 0:08:28]} 21. d4 {[%emt 0:02:39]} cxd4 {[%emt 0:01:21]} 22. Rxd4 {[%emt 0:00:04]} Ne7 {[%emt 0:03:38]} 23. Rxd8+ {[%emt 0:01:51]} Rxd8 {[%emt 0:00:04]} 24. Be1 {[%emt 0:00:01]} Nc6 {[%emt 0:02:10]} 25. Kf1 {[%emt 0:00:15]} Kf8 {[%emt 0:03:17]} 26. Ke2 {[%emt 0:02:45]} Ke7 {[%emt 0:00:09]} 27. Rc1 {[%emt 0:03:34]} Ne5 {[%emt 0:02:31]} 28. Rb1 {[%emt 0:01:15]} Nd3 {[%emt 0:00:57]} 29. b4 {[%emt 0:02:30]} e5 {[%emt 0:01:27]} 30. f3 {[%emt 0:03:16]} Nxe1 {[%emt 0:00:22]} 31. Rxe1 {[%emt 0:00:02]} 1/2-1/2